fUSD/lending_fUSD_20241030
["ID","MTS","AMOUNT","RATE_DAILY","PERIOD"]
[341057300,1730308280678,-500.0,0.00042739,14]
[341057301,1730308280687,-500.0,0.00042739,14]
[341057302,1730308280699,-515.75,0.00042739,14]
[341057303,1730308280709,-885.24,0.00042739,14]
[341057304,1730308280719,-500.0,0.00042739,14]
[341057305,1730308280728,-515.75,0.00042739,14]
[341057306,1730308280739,-500.0,0.00042739,14]
[341057307,1730308280748,-885.24,0.00042739,14]
[341057308,1730308280758,-500.0,0.00042739,14]
[341057309,1730308280767,-500.0,0.00042739,14]
[341057310,1730308280776,-515.75,0.00042739,14]
[341057311,1730308280785,-885.24,0.00042739,14]
[341057312,1730308280795,-500.0,0.00042739,14]
[341057313,1730308280804,-515.75,0.00042739,14]
[341057314,1730308280813,-500.0,0.00042739,14]
[341057315,1730308280822,-885.24,0.00042739,14]
[341057316,1730308280832,-500.0,0.00042739,14]
[341057317,1730308280842,-500.0,0.00042739,14]
[341057318,1730308280851,-515.75,0.00042739,14]
[341057319,1730308280860,-151.0,0.00042739,14]
[341057320,1730308280871,-885.24,0.00042739,14]
[341057321,1730308280880,-500.0,0.00042739,14]
[341057322,1730308280891,-515.75,0.00042739,14]
[341057323,1730308280900,-500.0,0.00042739,14]
[341057324,1730308280909,-885.24,0.00042739,14]
[341057325,1730308280921,-500.0,0.00042739,14]
[341057326,1730308280930,-515.75,0.00042739,14]
[341057327,1730308280940,-500.0,0.00042739,14]
[341057328,1730308280955,-885.24,0.00042739,14]
[341057329,1730308280969,-500.0,0.00042739,14]
[341057330,1730308280980,-500.0,0.00042739,14]
[341057331,1730308280990,-500.0,0.00042739,14]
[341057332,1730308281000,-885.24,0.00042739,14]
[341057333,1730308281010,-500.0,0.00042739,14]
[341057334,1730308281019,-500.0,0.00042739,14]
[341057335,1730308281029,-885.24,0.00042739,14]
[341057336,1730308281038,-500.0,0.00042739,14]
[341057337,1730308281050,-885.24,0.00042739,14]
[341057338,1730308281060,-500.0,0.00042739,14]
[341057339,1730308281070,-500.0,0.00042739,14]
[341057340,1730308281080,-885.24,0.00042739,14]
[341057341,1730308281089,-714.24,0.00042739,14]
[341057342,1730308281100,-500.0,0.00042739,14]
[341057343,1730308281110,-500.0,0.00042739,14]
[341057344,1730308281119,-885.24,0.00042739,14]
[341057345,1730308281128,-219.34198764,0.00042739,14]
[341057346,1730308281138,-885.24,0.00042739,14]
[341057347,1730308281147,-714.24,0.00042739,14]
[341057348,1730308281156,-500.0,0.00042739,14]
[341057349,1730308281166,-885.24,0.00042739,14]
[341057350,1730308281177,-500.0,0.00042739,14]
[341057351,1730308281186,-714.24,0.00042739,14]
[341057352,1730308281195,-500.0,0.00042739,14]
[341057353,1730308281204,-500.0,0.00042739,14]
[341057354,1730308281214,-885.24,0.00042739,14]
[341057355,1730308281223,-244.18841567,0.00042739,14]
[341057356,1730308281232,-500.0,0.00042739,14]
[341057357,1730308281242,-714.24,0.00042739,14]
[341057358,1730308281252,-885.24,0.00042739,14]
[341057359,1730308281261,-500.0,0.00042739,14]
[341057360,1730308281270,-714.24,0.00042739,14]
[341057361,1730308281280,-885.24,0.00042739,14]
[341057362,1730308281289,-714.24,0.00042739,14]
[341057363,1730308281299,-500.0,0.00042739,14]
[341057364,1730308281308,-885.24,0.00042739,14]
[341057365,1730308281317,-714.24,0.00042739,14]
[341057366,1730308281327,-500.0,0.00042739,14]
[341057367,1730308281336,-500.0,0.00042739,14]
[341057368,1730308281345,-714.24,0.00042739,14]
[341057369,1730308281355,-500.0,0.00042739,14]
[341057370,1730308281366,-500.0,0.00042739,14]
[341057371,1730308281377,-714.24,0.00042739,14]
[341057372,1730308281386,-500.0,0.00042739,14]
[341057373,1730308281396,-500.0,0.00042739,14]
[341057374,1730308281409,-714.24,0.00042739,14]
[341057375,1730308281418,-500.0,0.00042739,14]
[341057376,1730308281428,-500.0,0.00042739,14]
[341057377,1730308281437,-714.24,0.00042739,14]
[341057378,1730308281447,-151.0,0.00042739,2]
[341057379,1730308281456,-500.0,0.00042739,14]
[341057380,1730308281466,-697.79,0.00042739,14]
[341057381,1730308281476,-500.0,0.00042739,14]
[341057382,1730308281489,-714.24,0.00042739,14]
[341057383,1730308281499,-500.0,0.00042739,14]
[341057384,1730308281510,-500.0,0.00042739,14]
[341057385,1730308281522,-151.0,0.00042739,2]
[341057386,1730308281532,-697.79,0.00042739,14]
[341057387,1730308281541,-714.24,0.00042739,14]
[341057388,1730308281551,-500.0,0.00042739,14]
[341057389,1730308281562,-500.0,0.00042739,14]
[341057390,1730308281572,-151.0,0.00042739,2]
[341057391,1730308281582,-697.79,0.00042739,14]
[341057392,1730308281594,-500.0,0.00042739,14]
[341057393,1730308281604,-500.0,0.00042739,14]
[341057394,1730308281614,-714.24,0.00042739,14]
[341057395,1730308281625,-697.79,0.00042739,14]
[341057396,1730308281635,-500.0,0.00042739,14]
[341057397,1730308281646,-500.0,0.00042739,14]
[341057398,1730308281658,-154.308322,0.00042739,2]
[341057399,1730308281674,-714.24,0.00042739,14]
[341057400,1730308281683,-697.79,0.00042739,14]
[341057401,1730308281693,-752.49,0.00042739,14]
[341057402,1730308281704,-500.0,0.00042739,14]
[341057403,1730308281715,-500.0,0.00042739,14]
[341057404,1730308281725,-714.24,0.00042739,14]
[341057405,1730308281736,-752.49,0.00042739,14]
[341057406,1730308281746,-697.79,0.00042739,14]
[341057407,1730308281756,-500.0,0.00042739,14]
[341057408,1730308281765,-714.24,0.00042739,14]
[341057409,1730308281775,-697.79,0.00042739,14]
[341057410,1730308281784,-752.49,0.00042739,14]
[341057411,1730308281793,-595.3476836,0.00042739,14]
[341057412,1730308281803,-500.0,0.00042739,14]
[341057413,1730308281812,-714.24,0.00042739,14]
[341057414,1730308281821,-697.79,0.00042739,14]
[341057415,1730308281831,-752.49,0.00042739,14]
[341057416,1730308281839,-500.0,0.00042739,14]
[341057417,1730308281848,-697.79,0.00042739,14]
[341057418,1730308281858,-752.49,0.00042739,14]
[341057419,1730308281867,-500.0,0.00042739,14]
[341057420,1730308281876,-697.79,0.00042739,14]
[341057421,1730308281885,-752.49,0.00042739,14]
[341057422,1730308281895,-697.79,0.00042739,14]
[341057423,1730308281904,-752.49,0.00042739,14]
[341057424,1730308281913,-697.79,0.00042739,14]
[341057425,1730308281923,-752.49,0.00042739,14]
[341057426,1730308281932,-598.67599501,0.00042739,14]
[341057427,1730308281941,-752.49,0.00042739,14]
[341057428,1730308281951,-697.79,0.00042739,14]
[341057429,1730308281960,-697.79,0.00042739,14]
[341057430,1730308281970,-752.49,0.00042739,14]
[341057431,1730308281980,-697.79,0.00042739,14]
[341057432,1730308281989,-752.49,0.00042739,14]
[341057433,1730308281998,-500.0,0.00042739,14]
[341057434,1730308282008,-500.0,0.00042739,14]
[341057435,1730308282018,-752.49,0.00042739,14]
[341057436,1730308282027,-500.0,0.00042739,14]
[341057437,1730308282036,-752.49,0.00042739,14]
[341057438,1730308282045,-500.0,0.00042739,14]
[341057439,1730308282055,-752.49,0.00042739,14]
[341057440,1730308282065,-500.0,0.00042739,14]
[341057441,1730308282074,-500.0,0.00042739,14]
[341057442,1730308282083,-500.0,0.00042739,14]
[341057443,1730308282093,-752.49,0.00042739,14]
[341057444,1730308282102,-500.0,0.00042739,14]
[341057445,1730308282111,-500.0,0.00042739,14]
[341057446,1730308282120,-500.0,0.00042739,14]
[341057447,1730308282130,-500.0,0.00042739,14]
[341057448,1730308282140,-500.0,0.00042739,14]
[341057449,1730308282150,-500.0,0.00042739,14]
[341057450,1730308282160,-500.0,0.00042739,14]
[341057451,1730308282171,-500.0,0.00042739,14]
[341057452,1730308282181,-500.0,0.00042739,14]
[341057453,1730308282190,-500.0,0.00042739,14]
[341057454,1730308282201,-500.0,0.00042739,14]
[341057455,1730308282211,-500.0,0.00042739,14]
[341057456,1730308282221,-500.0,0.00042739,14]
[341057457,1730308282231,-500.0,0.00042739,14]
[341057458,1730308282240,-500.0,0.00042739,14]
[341057459,1730308282250,-500.0,0.00042739,14]
[341057460,1730308282259,-500.0,0.00042739,14]
[341057461,1730308282269,-500.0,0.00042739,14]
[341057462,1730308282278,-500.0,0.00042739,14]
[341057463,1730308282287,-500.0,0.00042739,14]
[341057464,1730308282296,-500.0,0.00042739,14]
[341057465,1730308282306,-426.48240998,0.00042739,14]
[341057466,1730308282315,-500.0,0.00042739,14]
[341057467,1730308282325,-500.0,0.00042739,14]
[341057468,1730308282334,-500.0,0.00042739,14]
[341057469,1730308282343,-500.0,0.00042739,14]
[341057470,1730308282353,-500.0,0.00042739,14]
[341057471,1730308282362,-271.34548947,0.00042739,14]
[341057472,1730308282371,-500.0,0.00042739,14]
[341057473,1730308282380,-500.0,0.00042739,14]
[341057474,1730308282390,-663.67,0.00042739,14]
[341057475,1730308282400,-500.0,0.00042739,14]
[341057476,1730308282411,-152.0,0.00042776,11]
[341057477,1730308282420,-801.22,0.000428,60]
[341057478,1730308282430,-3000.0,0.000428,15]
[341057479,1730308282439,-500.0,0.00042848,14]
[341057480,1730308282448,-169.454538,0.00042849,14]
[341057481,1730308282458,-150.0,0.00042851,2]
[341057482,1730308282564,-150.0,0.00042887,2]
[341057483,1730308282574,-574.87,0.000429,30]
[341057484,1730308282583,-600.0,0.000429,15]
[341057485,1730308282593,-150.0,0.00042961,2]
[341057486,1730308282602,-150.0,0.00042961,2]
[341057487,1730308282612,-1294.41,0.00042973,2]
[341057488,1730308282621,-202.68916057,0.00042973,4]
[341057489,1730308282630,-150.0,0.00042974,2]
[341057490,1730308282640,-150.0,0.00042984,2]
[341057491,1730308282650,-516.25,0.00042995,14]
[341057492,1730308282660,-572.16,0.00042995,14]
[341057493,1730308282670,-1155.51,0.00042995,14]
[341057494,1730308282680,-1599.66,0.00042995,14]
[341057495,1730308282689,-1069.68,0.00042995,14]
[341057496,1730308282699,-513.46,0.00042995,14]
[341057497,1730308282709,-2973.95,0.00042995,14]
[341057498,1730308282719,-641.47,0.00042995,14]
[341057499,1730308282728,-537.01,0.00042995,14]
[341057500,1730308282738,-1558.05,0.00042995,14]
[341057501,1730308282747,-752.49,0.00042995,14]
[341057502,1730308282757,-612.19,0.00042996,14]
[341057503,1730308282767,-500.0,0.00042996,14]
[341057504,1730308282776,-1084.81,0.00042996,14]
[341057505,1730308282785,-7634.54,0.00042996,14]
[341057506,1730308282795,-582.19,0.00042996,14]
[341057507,1730308282805,-507.67,0.00042996,14]
[341057508,1730308282816,-1085.12,0.00042996,14]
[341057509,1730308282826,-738.53,0.00042996,14]
[341057510,1730308282836,-515.75,0.00042996,14]
[341057511,1730308282846,-885.24,0.00042996,14]
[341057512,1730308282856,-500.0,0.00042996,14]
[341057513,1730308282866,-906.91,0.00042997,14]
[341057514,1730308282876,-577.08,0.00042997,14]
[341057515,1730308282886,-694.24,0.00042997,14]
[341057516,1730308282897,-500.0,0.00042997,14]
[341057517,1730308282907,-737.42,0.00042997,14]
[341057518,1730308282918,-500.0,0.00042997,14]
[341057519,1730308282928,-764.73,0.00042997,14]
[341057520,1730308282938,-1017.46,0.00042997,14]
[341057521,1730308282948,-500.0,0.00042997,14]
[341057522,1730308282959,-608.6259592,0.00042997,14]
[341057523,1730308282970,-801.35,0.00042997,14]
[341057524,1730308282979,-602.45,0.00042997,14]
[341057525,1730308282988,-229.618148,0.00042997,7]
[341057526,1730308282997,-229.618148,0.00042997,7]
[341057527,1730308283007,-500.0,0.00042997,14]
[341057528,1730308283017,-690.36,0.00042997,14]
[341057529,1730308283026,-341.48385831,0.00042997,14]
[341057530,1730308283036,-500.0,0.00042997,14]
[341057531,1730308283045,-162.96860738,0.00042997,14]
[341057532,1730308283054,-500.0,0.00042997,14]
[341057533,1730308283064,-500.0,0.00042997,14]
[341057534,1730308283074,-500.0,0.00042997,14]
[341057535,1730308283084,-544.51,0.00042997,14]
[341057536,1730308283094,-617.75,0.00042997,14]
[341057537,1730308283104,-996.0,0.00042997,14]
[341057538,1730308283113,-500.0,0.00042997,14]
[341057539,1730308283122,-500.0,0.00042997,14]
[341057540,1730308283132,-500.0,0.00042997,14]
[341057541,1730308283141,-517.37,0.00042997,14]
[341057542,1730308283151,-647.06,0.00042997,14]
[341057543,1730308283160,-831.19,0.00042997,14]
[341057544,1730308283169,-1923.98,0.00042997,14]
[341057545,1730308283179,-420.5968971,0.00042997,14]
[341057546,1730308283188,-2664.49,0.00042997,14]
[341057547,1730308283198,-500.0,0.00042997,14]
[341057548,1730308283208,-705.92,0.00042997,14]
[341057549,1730308283218,-677.16,0.00042997,14]
[341057550,1730308283227,-845.34,0.00042997,14]
[341057551,1730308283236,-500.0,0.00042997,14]
[341057552,1730308283247,-670.37,0.00042997,14]
[341057553,1730308283256,-794.07,0.00042997,14]
[341057554,1730308283266,-1298.55,0.00042997,14]
[341057555,1730308283275,-787.24,0.00042997,14]
[341057556,1730308283286,-500.0,0.00042997,14]
[341057557,1730308283295,-628.72077264,0.00042997,14]
[341057558,1730308283304,-971.52,0.00042997,14]
[341057559,1730308283313,-500.0,0.00042997,14]
[341057560,1730308283322,-1461.8,0.00042997,14]
[341057561,1730308283333,-969.18,0.00042997,14]
[341057562,1730308283342,-500.0,0.00042997,14]
[341057563,1730308283352,-1666.66,0.00042997,14]
[341057564,1730308283362,-835.05,0.00042997,14]
[341057565,1730308283371,-733.58,0.00042997,14]
[341057566,1730308283381,-500.0,0.00042997,14]
[341057567,1730308283390,-500.0,0.00042997,14]
[341057568,1730308283402,-715.57,0.00042997,14]
[341057569,1730308283412,-975.99,0.00042997,14]
[341057570,1730308283422,-1272.21,0.00042997,14]
[341057571,1730308283431,-751.97,0.00042997,14]
[341057572,1730308283441,-704.84,0.00042997,14]
[341057573,1730308283450,-1025.2,0.00042997,14]
[341057574,1730308283460,-634.2,0.00042997,14]
[341057575,1730308283469,-1459.31,0.00042997,7]
[341057576,1730308283481,-500.0,0.00042997,14]
[341057577,1730308283491,-581.05,0.00042997,14]
[341057578,1730308283501,-1375.92,0.00042997,14]
[341057579,1730308283511,-1375.92,0.00042997,14]
[341057580,1730308283521,-1375.92,0.00042997,14]
[341057581,1730308283531,-1139.46,0.00042997,14]
[341057582,1730308283540,-1375.92,0.00042997,14]
[341057583,1730308283550,-1375.92,0.00042997,14]
[341057584,1730308283560,-612.19,0.00042997,14]
[341057585,1730308283570,-1376.0611,0.00042997,14]
[341057586,1730308283579,-612.19,0.00042997,14]
[341057587,1730308283589,-612.19,0.00042997,14]
[341057588,1730308283599,-612.19,0.00042997,14]
[341057589,1730308283608,-612.21685804,0.00042997,14]
[341057590,1730308283618,-500.0,0.00042997,14]
[341057591,1730308283628,-347.8001284,0.00042997,14]
[341057592,1730308283637,-1084.81,0.00042997,14]
[341057593,1730308283647,-1084.81,0.00042997,14]
[341057594,1730308283657,-1084.81,0.00042997,14]
[341057595,1730308283667,-1084.81,0.00042997,14]
[341057596,1730308283678,-1084.86672744,0.00042997,14]
[341057597,1730308283687,-1194.9,0.00042997,14]
[341057598,1730308283696,-1194.9,0.00042997,14]
[341057599,1730308283706,-1194.9,0.00042997,14]
[341057600,1730308283716,-1194.9,0.00042997,14]
[341057601,1730308283726,-581.87,0.00042997,14]
[341057602,1730308283737,-1194.9,0.00042997,14]
[341057603,1730308283746,-1195.06763667,0.00042997,14]
[341057604,1730308283756,-500.0,0.00042997,14]
[341057605,1730308283766,-319.278894,0.00042997,14]
[341057606,1730308283775,-7634.54,0.00042997,14]
[341057607,1730308283785,-7634.54,0.00042997,14]
[341057608,1730308283795,-7634.54,0.00042997,14]
[341057609,1730308283804,-7634.54,0.00042997,14]
[341057610,1730308283813,-319.278894,0.00042997,14]
[341057611,1730308283823,-7634.56205959,0.00042997,14]
[341057612,1730308283833,-874.87,0.00042997,14]
[341057613,1730308283842,-261.70949658,0.00042997,14]
[341057614,1730308283852,-582.19,0.00042997,14]
[341057615,1730308283861,-582.19,0.00042997,14]
[341057616,1730308283870,-582.19,0.00042997,14]
[341057617,1730308283879,-582.19,0.00042997,14]
[341057618,1730308283889,-582.33168906,0.00042997,14]
[341057619,1730308283898,-525.38,0.00042997,14]
[341057620,1730308283907,-525.38,0.00042997,14]
[341057621,1730308283916,-525.38,0.00042997,14]
[341057622,1730308283927,-525.38,0.00042997,14]
[341057623,1730308283936,-525.38,0.00042997,14]
[341057624,1730308283945,-909.2,0.00042997,14]
[341057625,1730308283955,-525.44428629,0.00042997,14]
[341057626,1730308283965,-507.67,0.00042997,14]
[341057627,1730308283974,-507.67,0.00042997,14]
[341057628,1730308283983,-507.67,0.00042997,14]
[341057629,1730308283993,-507.67,0.00042997,14]
[341057630,1730308284003,-507.89804783,0.00042997,14]
[341057631,1730308284012,-903.66,0.00042997,14]
[341057632,1730308284022,-500.0,0.00042997,14]
[341057633,1730308284031,-151.0,0.00042997,7]
[341057634,1730308284042,-1085.12,0.00042997,14]
[341057635,1730308284052,-160.947256,0.00042997,7]
[341057636,1730308284061,-1085.12,0.00042997,14]
[341057637,1730308284070,-1085.12,0.00042997,14]
[341057638,1730308284080,-1085.12,0.00042997,14]
[341057639,1730308284089,-1085.16000001,0.00042997,14]
[341057640,1730308284099,-646.39,0.00042997,14]
[341057641,1730308284109,-1003.76,0.00042997,14]
[341057642,1730308284119,-1003.76,0.00042997,14]
[341057643,1730308284129,-1003.76,0.00042997,14]
[341057644,1730308284139,-1003.76,0.00042997,14]
[341057645,1730308284150,-1003.76,0.00042997,14]
[341057646,1730308284160,-1003.84272747,0.00042997,14]
[341057647,1730308284170,-2792.23,0.00042997,14]
[341057648,1730308284179,-542.52,0.00042997,14]
[341057649,1730308284188,-746.26,0.00042997,14]
[341057650,1730308284197,-1136.58,0.00042997,14]
[341057651,1730308284207,-603.68,0.00042997,14]
[341057652,1730308284217,-514.13,0.00042997,14]
[341057653,1730308284227,-514.13,0.00042997,14]
[341057654,1730308284236,-738.53,0.00042997,14]
[341057655,1730308284246,-514.13,0.00042997,14]
[341057656,1730308284256,-738.53,0.00042997,14]
[341057657,1730308284265,-514.13,0.00042997,14]
[341057658,1730308284274,-738.53,0.00042997,14]
[341057659,1730308284284,-514.13,0.00042997,14]
[341057660,1730308284293,-738.53,0.00042997,14]
[341057661,1730308284303,-514.22822687,0.00042997,14]
[341057662,1730308284313,-738.57503735,0.00042997,14]
[341057663,1730308284419,-515.75,0.00042997,14]
[341057664,1730308284430,-500.0,0.00042997,14]
[341057665,1730308284439,-515.75,0.00042997,14]
[341057666,1730308284450,-515.75,0.00042997,14]
[341057667,1730308284459,-515.75,0.00042997,14]
[341057668,1730308284469,-515.85278747,0.00042997,14]
[341057669,1730308284479,-885.24,0.00042997,14]
[341057670,1730308284488,-885.24,0.00042997,14]
[341057671,1730308284498,-885.24,0.00042997,14]
[341057672,1730308284507,-885.24,0.00042997,14]
[341057673,1730308284517,-885.35523239,0.00042997,14]
[341057674,1730308284526,-714.24,0.00042997,14]
[341057675,1730308284536,-714.24,0.00042997,14]
[341057676,1730308284546,-714.24,0.00042997,14]
[341057677,1730308284555,-500.0,0.00042997,14]
[341057678,1730308284564,-714.24,0.00042997,14]
[341057679,1730308284574,-500.0,0.00042997,14]
[341057680,1730308284584,-714.24,0.00042997,14]
[341057681,1730308284594,-500.0,0.00042997,14]
[341057682,1730308284604,-714.27,0.00042997,14]
[341057683,1730308284613,-500.0,0.00042997,14]
[341057684,1730308284622,-167.83036195,0.00042997,14]
[341057685,1730308284632,-697.79,0.00042997,14]
[341057686,1730308284642,-500.0,0.00042997,14]
[341057687,1730308284651,-529.1,0.00042998,14]
[341057688,1730308284661,-529.1,0.00042998,14]
[341057689,1730308284671,-500.0,0.00042998,14]
[341057690,1730308284681,-500.0,0.00042998,14]
[341057691,1730308284691,-500.0,0.00042998,14]
[341057692,1730308284701,-500.0,0.00042998,14]
[341057693,1730308284710,-1427.35,0.00042998,2]
[341057694,1730308284719,-1427.35,0.00042998,2]
[341057695,1730308284729,-711.26,0.00042998,14]
[341057696,1730308284738,-711.26,0.00042998,14]
[341057697,1730308284747,-500.0,0.00042998,14]
[341057698,1730308284757,-500.0,0.00042998,14]
[341057699,1730308284767,-500.0,0.00042998,14]
[341057700,1730308284776,-500.0,0.00042998,14]
[341057701,1730308284787,-906.91,0.00042998,14]
[341057702,1730308284796,-577.08,0.00042998,14]
[341057703,1730308284806,-694.24,0.00042998,14]
[341057704,1730308284815,-737.42,0.00042998,14]
[341057705,1730308284825,-500.0,0.00042998,14]
[341057706,1730308284835,-500.0,0.00042998,14]
[341057707,1730308284845,-500.0,0.00042998,14]
[341057708,1730308284855,-500.0,0.00042998,14]
[341057709,1730308284864,-464.71085179,0.00042998,14]
[341057710,1730308284874,-516.25,0.00042998,14]
[341057711,1730308284883,-516.25,0.00042998,14]
[341057712,1730308284893,-516.25,0.00042998,14]
[341057713,1730308284903,-352.75276947,0.00042998,14]
[341057714,1730308284919,-764.73,0.00042998,14]
[341057715,1730308284930,-764.73,0.00042998,14]
[341057716,1730308284940,-764.73,0.00042998,14]
[341057717,1730308284950,-764.73,0.00042998,14]
[341057718,1730308284959,-764.73,0.00042998,14]
[341057719,1730308284968,-764.73,0.00042998,14]
[341057720,1730308284978,-764.73865035,0.00042998,14]
[341057721,1730308284988,-1017.46,0.00042998,14]
[341057722,1730308284998,-499.25275885,0.00042998,14]
[341057723,1730308285009,-801.35,0.00042998,14]
[341057724,1730308285018,-602.45,0.00042998,14]
[341057725,1730308285028,-602.45,0.00042998,14]
[341057726,1730308285039,-602.45,0.00042998,14]
[341057727,1730308285049,-602.45,0.00042998,14]
[341057728,1730308285059,-602.45,0.00042998,14]
[341057729,1730308285069,-602.45,0.00042998,14]
[341057730,1730308285079,-602.5185858,0.00042998,14]
[341057731,1730308285088,-358.70461763,0.00042998,14]
[341057732,1730308285098,-690.36,0.00042998,14]
[341057733,1730308285108,-500.0,0.00042998,14]
[341057734,1730308285118,-500.0,0.00042998,14]
[341057735,1730308285128,-561.05057854,0.00042998,14]
[341057736,1730308285139,-784.32,0.00042998,14]
[341057737,1730308285149,-784.32,0.00042998,14]
[341057738,1730308285159,-500.0,0.00042998,14]
[341057739,1730308285168,-500.0,0.00042998,14]
[341057740,1730308285179,-500.0,0.00042998,14]
[341057741,1730308285189,-500.0,0.00042998,14]
[341057742,1730308285198,-500.0,0.00042998,14]
[341057743,1730308285208,-502.34969441,0.00042998,14]
[341057744,1730308285217,-544.51,0.00042998,14]
[341057745,1730308285227,-617.75,0.00042998,14]
[341057746,1730308285236,-617.75,0.00042998,14]
[341057747,1730308285246,-617.75,0.00042998,14]
[341057748,1730308285256,-617.75,0.00042998,14]
[341057749,1730308285265,-617.75,0.00042998,14]
[341057750,1730308285275,-617.75,0.00042998,14]
[341057751,1730308285284,-617.7850726,0.00042998,14]
[341057752,1730308285294,-996.0,0.00042998,14]
[341057753,1730308285303,-996.0,0.00042998,14]
[341057754,1730308285314,-996.0,0.00042998,14]
[341057755,1730308285323,-996.0,0.00042998,14]
[341057756,1730308285332,-996.0,0.00042998,14]
[341057757,1730308285342,-996.0,0.00042998,14]
[341057758,1730308285351,-996.09158657,0.00042998,14]
[341057759,1730308285361,-500.0,0.00042998,14]
[341057760,1730308285369,-500.0,0.00042998,14]
[341057761,1730308285379,-500.0,0.00042998,14]
[341057762,1730308285388,-500.0,0.00042998,14]
[341057763,1730308285398,-152.55669392,0.00042998,14]
[341057764,1730308285411,-500.0,0.00042998,14]
[341057765,1730308285421,-500.0,0.00042998,14]
[341057766,1730308285430,-500.0,0.00042998,14]
[341057767,1730308285440,-500.0,0.00042998,14]
[341057768,1730308285450,-500.0,0.00042998,14]
[341057769,1730308285460,-500.0,0.00042998,14]
[341057770,1730308285470,-500.0,0.00042998,14]
[341057771,1730308285483,-461.27632428,0.00042998,14]
[341057772,1730308285493,-517.37,0.00042998,14]
[341057773,1730308285503,-517.37,0.00042998,14]
[341057774,1730308285514,-517.37,0.00042998,14]
[341057775,1730308285525,-517.37,0.00042998,14]
[341057776,1730308285534,-517.37,0.00042998,14]
[341057777,1730308285544,-647.06,0.00042998,14]
[341057778,1730308285555,-517.37,0.00042998,14]
[341057779,1730308285566,-647.06,0.00042998,14]
[341057780,1730308285576,-517.55594591,0.00042998,14]
[341057781,1730308285586,-647.06,0.00042998,14]
[341057782,1730308285595,-647.06,0.00042998,14]
[341057783,1730308285604,-647.06,0.00042998,14]
[341057784,1730308285614,-647.06,0.00042998,14]
[341057785,1730308285622,-647.2270007,0.00042998,14]
[341057786,1730308285631,-831.19,0.00042998,14]
[341057787,1730308285640,-1923.98,0.00042998,14]
[341057788,1730308285649,-2664.49,0.00042998,14]
[341057789,1730308285658,-500.0,0.00042998,14]
[341057790,1730308285668,-705.92,0.00042998,14]
[341057791,1730308285679,-705.92,0.00042998,14]
[341057792,1730308285688,-705.92,0.00042998,14]
[341057793,1730308285697,-705.92,0.00042998,14]
[341057794,1730308285706,-705.92,0.00042998,14]
[341057795,1730308285715,-677.16,0.00042998,14]
[341057796,1730308285724,-705.92,0.00042998,14]
[341057797,1730308285733,-706.12106848,0.00042998,14]
[341057798,1730308285743,-845.34,0.00042998,14]
[341057799,1730308285752,-845.34,0.00042998,14]